[Event "53rd Mar Del Plata Open 2024"]
[Site "Mar Del Plata"]
[Date "2024.03.30"]
[Round "9.8"]
[White "Felgaer, Ruben"]
[Black "Needleman, Alejandro"]
[Result "1-0"]
[ECO "B47"]
[WhiteElo "2565"]
[BlackElo "2215"]
[Annotator "TA"]
[PlyCount "51"]
[EventDate "2024.03.23"]
[EventType "swiss"]
[EventCountry "ARG"]
[SourceTitle "playchess.com"]
[Source "ChessBase"]
[SourceQuality "1"]
[TimeControl "5400+30"]

{[%evp 16,51,33,22,28,22,26,30,89,32,27,18,45,20,48,2,0,14,43,32,66,28,28,27,27,35,61,55,184,184,662,687,707,672,708,671,696,677]} 1. e4 {[%emt 0:00:04]} c5 {[%emt 0:00:29]} 2. Nf3 {[%emt 0:00:17]} e6 {[%emt 0:00:33]} 3. d4 {[%emt 0:00:19]} cxd4 {[%emt 0:00:09]} 4. Nxd4 {[%emt 0:00:05]} Nc6 {[%emt 0:00:09]} 5. Nc3 {[%emt 0:00:16]} Qc7 {[%emt 0:00:08]} 6. Be2 {[%emt 0:00:57]} a6 {[%emt 0:00:11]} 7. O-O {[%emt 0:00:08]} b5 {[%emt 0:00:04]} 8. Nxc6 {[%emt 0:00:20]} dxc6 {[%emt 0:00:08]} 9. f4 {[%emt 0:01:01]} Nf6 {[%emt 0:00:47]} 10. e5 {[%emt 0:01:04]} Nd5 {[%emt 0:00:26]} 11. Ne4 {[%emt 0:00:12]} c5 {[%emt 0:01:40]} (11... Bb7 $11 {keeps the balance.}) 12. Bf3 {[%emt 0:04:06] White is more active.} (12. a4 $16 b4 13. c4 bxc3 14. bxc3) 12... Bb7 $14 {[%emt 0:02:08]} 13. Qe1 {[%emt 0:01:52][%cal Of4f5]} c4 {[%emt 0:02:18]} 14. Bd2 {[%emt 0:00:45]} Be7 {[%emt 0:03:43]} 15. Kh1 {[%emt 0:02:46]} (15. Ba5 $14 Qb8 16. Kh1) 15... O-O $11 {[%emt 0:03:22]} 16. Ba5 {[%emt 0:00:32]} Qb8 {[%emt 0:01:26]} 17. Rd1 {[%emt 0:09:07][%cal Oe4d6]} Bc6 {[%emt 0:06:23][%cal Ob5b4] [#]} (17... Nxf4 $2 18. Rd7 Nd5 19. Nf6+ gxf6 20. exf6 $18 (20. Bxd5 Bxd5 21. Bc7 Qb7 $11)) 18. Nd6 $1 {[%emt 0:08:47]} Bxd6 {[%emt 0:03:22]} 19. exd6 {[%emt 0:00:02]} Qxd6 {[%emt 0:00:13] [#]} 20. f5 $1 {[%emt 0:02:16]} Rfe8 {[%emt 0:23:34] [#]} (20... exf5 $2 {too greedy.} 21. Rxd5 Bxd5 22. Qd2 $18 (22. Qd1 $2 Rfd8 $19)) (20... Kh8 21. Bc3) 21. f6 $1 {[%emt 0:00:11]} gxf6 {[%emt 0:02:47] A mistake that costs the game.} (21... Qc5 $14) (21... b4 22. fxg7) 22. Qh4 {[%emt 0:10:45]} Qe5 {[%emt 0:01:55]} ({But not} 22... f5 23. Bc3 Kf8 24. a3 $18 (24. Qxh7 Ke7 $18)) (22... Qf8) 23. Bxd5 $18 {[%emt 0:08:52] White is clearly winning.} Bxd5 {[%emt 0:01:09]} 24. Rxf6 {[%emt 0:01:53] Hoping for Bc3.} Qe4 {[%emt 0:18:55][%csl Gd5][%cal Re4g2] Black is weak on the dark squares} 25. Qg5+ {[%emt 0:06:37]} Kh8 {[%emt 0:03:27] ...Rg8 would now be deadly.} 26. Rxf7 {[%emt 0:01:29] Weighted Error Value: White=0.10 (very precise) /Black=0.65.  Mistake:       	White=2     	Black=3      Inaccurate:     	White=1     	Black=5      OK:         	White=5     	Black=2      Best:        	White=1     	Black=1      Brilliant:      	White=1     	---} 1-0

[Event "53rd Mar Del Plata Open 2024"]
[Site "Mar Del Plata"]
[Date "2024.03.30"]
[Round "9.9"]
[White "Unhold, Valentin"]
[Black "Espinoza Palomino, Willyam"]
[Result "0-1"]
[ECO "D45"]
[WhiteElo "2146"]
[BlackElo "2400"]
[Annotator "TA"]
[PlyCount "104"]
[EventDate "2024.03.23"]
[EventType "swiss"]
[EventCountry "ARG"]
[SourceTitle "playchess.com"]
[Source "ChessBase"]
[SourceQuality "1"]
[TimeControl "5400+30"]

{[%evp 13,104,14,13,14,20,19,24,30,75,0,0,0,0,0,-4,-61,-55,-68,-27,-101,-49,-55,-70,-75,-66,-107,-100,-108,-108,-108,-116,-117,-113,-146,-75,-55,-60,-64,-69,-75,-38,-33,-33,-37,-32,-31,-39,-72,-37,-24,-6,-14,-4,-16,-14,-10,-10,-10,-10,-10,-10,-10,-10,-10,-8,-8,-8,-8,-8,-8,-8,-8,0,-8,0,-8,-8,-14,-15,-15,-17,-25,-25,-32,-32,-47,-27,-29963,-29964,-29966,-29966,-12819,-11539]} 1. d4 {[%emt 0:00:03]} d5 {[%emt 0:00:39]} 2. c4 {[%emt 0:00:09]} c6 {[%emt 0:00:44]} 3. Nc3 {[%emt 0:00:10]} Nf6 {[%emt 0:00:04]} 4. e3 {[%emt 0:00:13]} e6 {[%emt 0:03:34]} 5. Nf3 {[%emt 0:00:15]} Nbd7 {[%emt 0:00:15]} 6. Be2 {[%emt 0:00:08]} dxc4 {[%emt 0:06:37]} 7. a4 {[%emt 0:00:19]} Bb4 {[%emt 0:00:50]} 8. Bxc4 {[%emt 0:00:28]} O-O {[%emt 0:00:56]} 9. O-O {[%emt 0:00:29]} Qe7 {[%emt 0:05:11]} 10. Qc2 {[%emt 0:10:18] White has an edge.} e5 {[%emt 0:04:23]} 11. Rd1 {[%emt 0:05:38]} (11. a5 $1 $16) 11... e4 $11 {[%emt 0:20:12]} (11... exd4 {looks sharper.} 12. Rxd4 Ne5 13. Nxe5 Qxe5 14. Bxf7+ Rxf7 15. Rxb4 Ng4) 12. Nd2 {[%emt 0:03:35]} Re8 {[%emt 0:04:56]} 13. Be2 {[%emt 0:11:28]} Nb6 {[%emt 0:04:10]} 14. f3 {[%emt 0:08:12]} (14. a5 $11 Nbd5 15. Nc4) 14... exf3 $15 {[%emt 0:06:18]} 15. Nxf3 {[%emt 0:00:54]} Bg4 {[%emt 0:01:54]} 16. Rf1 {[%emt 0:04:52]} (16. Bd3 $11) 16... Bh5 {[%emt 0:04:57]} (16... Nbd5 $17 17. Nxd5 cxd5 (17... Nxd5 18. e4 $11)) 17. Bd3 {[%emt 0:09:51]} Bg6 {[%emt 0:06:24] Prevents e4} 18. Bxg6 {[%emt 0:01:42]} hxg6 {[%emt 0:00:02]} (18... fxg6 $6 19. Re1 $11) 19. Bd2 {[%emt 0:01:44]} Bxc3 {[%emt 0:08:51]} 20. bxc3 {[%emt 0:00:28]} Nc4 {[%emt 0:00:18][%cal Ob7b5]} 21. Rae1 {[%emt 0:00:53][%cal Oe3e4]} Ne4 {[%emt 0:00:44] Excellent horsemanship.} 22. Bc1 {[%emt 0:01:41][%cal Of3e5]} Qe6 {[%emt 0:02:50] Black has more active pieces.} 23. Ne5 {[%emt 0:04:02]} Nxe5 {[%emt 0:03:24]} (23... f5 $142 24. Nd3 a5) 24. Qxe4 $17 {[%emt 0:00:26]} Nc4 {[%emt 0:00:11]} 25. Qxe6 {[%emt 0:01:27]} Rxe6 {[%emt 0:00:02]} 26. e4 {[%emt 0:00:14]} Rae8 {[%emt 0:03:02]} 27. e5 {[%emt 0:00:10]} f6 {[%emt 0:00:20]} 28. exf6 {[%emt 0:00:25]} gxf6 {[%emt 0:00:01]} (28... Rxe1 $2 {too greedy.} 29. f7+ Kh7 30. Rxe1 Rxe1+ 31. Kf2 Rxc1 32. f8=Q $18 (32. f8=R $2 Rxc3 33. Rf3 Rxf3+ 34. Kxf3 a5 $19)) 29. Rxe6 Rxe6 $15 {[%emt 0:00:01][%mdl 4096] Endgame. KRB-KRN} 30. Kf2 {[%emt 0:03:53]} Kf7 {[%emt 0:00:02]} 31. h4 {[%emt 0:01:40]} f5 {[%emt 0:08:31]} 32. Bf4 {[%emt 0:02:52]} b5 {[%emt 0:01:12]} 33. d5 {[%emt 0:03:52]} cxd5 {[%emt 0:01:02]} 34. axb5 {[%emt 0:00:06] aiming for Ra1.} Na3 {[%emt 0:00:13]} 35. Rd1 {[%emt 0:01:50]} Nxb5 {[%emt 0:02:23]} 36. Rxd5 {[%emt 0:00:06]} Nxc3 {[%emt 0:00:15]} 37. Ra5 {[%emt 0:00:07]} a6 {[%emt 0:00:31]} 38. h5 {[%emt 0:02:14]} Nb5 {[%emt 0:00:00]} 39. hxg6+ {[%emt 0:00:39]} Kxg6 {[%emt 0:00:02]} 40. g3 {[%emt 0:02:22]} Rc6 {[%emt 0:00:09]} 41. Kf3 {[%emt 0:02:35]} Rc3+ {[%emt 0:00:40]} 42. Kf2 {[%emt 0:00:40]} Rc6 {[%emt 0:01:31]} 43. Kf3 {[%emt 0:00:06]} Kf7 {[%emt 0:01:24]} 44. Be3 {[%emt 0:03:05]} Ke6 {[%emt 0:00:54]} 45. g4 {[%emt 0:01:06]} fxg4+ {[%emt 0:00:33]} 46. Kxg4 {[%emt 0:00:16]} Kd5 {[%emt 0:00:13]} 47. Kf3 {[%emt 0:01:10]} Kc4 {[%emt 0:00:06]} 48. Ke2 {[%emt 0:02:05]} Rd6 {[%emt 0:00:06]} 49. Bd2 {[%emt 0:00:50]} Kb3 {[%emt 0:00:56]} 50. Kd1 $2 {[%emt 0:02:27][%mdl 8192] [#]} (50. Bf4 $11) 50... Na3 $1 {[%emt 0:00:36]} 51. Kc1 {[%emt 0:02:37] [#]} Nc4 $1 {[%emt 0:00:49][%csl LRa5,LRd2]} ({Inferior is} 51... Rxd2 52. Rxa6 Nc4 53. Rf6 $11 (53. Rb6+ Kc3 $15)) 52. Bf4 {[%emt 0:00:07]} Rf6 {[%emt 0:00:15] Weighted Error Value: White=0.28 (precise) /Black=0.09 (flawless) .  Loses game:     	White=1     	---        Mistake:       	White=3     	Black=2      Inaccurate:     	White=2     	Black=4      OK:         	White=15    	Black=16     Best:        	White=3     	Black=4      Strong:       	---       	Black=1} 0-1

[Event "53rd Mar Del Plata Open 2024"]
[Site "Mar Del Plata"]
[Date "2024.03.30"]
[Round "9.10"]
[White "Moreno Perez, Tobias Sebastian"]
[Black "Flores, Diego"]
[Result "0-1"]
[ECO "A26"]
[WhiteElo "2246"]
[BlackElo "2530"]
[Annotator "TA"]
[PlyCount "78"]
[EventDate "2024.03.23"]
[EventType "swiss"]
[EventCountry "ARG"]
[SourceTitle "playchess.com"]
[Source "ChessBase"]
[SourceQuality "1"]
[TimeControl "5400+30"]

{[%evp 20,78,20,8,12,6,14,13,12,0,0,0,0,0,0,-17,-20,-21,0,0,21,0,51,50,54,42,60,0,0,0,0,0,0,0,0,-83,-51,-54,-38,-67,-83,-96,-102,-91,-99,-217,-212,-237,-242,-237,-237,-329,-207,-1878,-1231,-29986,-29987,-29987,-29988,-29997,-29998]} 1. Nf3 {[%emt 0:00:08]} g6 {[%emt 0:01:38]} 2. c4 {[%emt 0:00:36]} Bg7 {[%emt 0:00:23]} 3. Nc3 {[%emt 0:00:22]} d6 {[%emt 0:03:07]} 4. g3 {[%emt 0:02:03]} e5 {[%emt 0:04:04]} 5. Bg2 {[%emt 0:01:23]} Nc6 {[%emt 0:01:51]} 6. d3 {[%emt 0:02:35]} f5 {[%emt 0:03:47]} 7. O-O {[%emt 0:03:51]} Nf6 {[%emt 0:00:42]} 8. Rb1 {[%emt 0:01:19]} O-O {[%emt 0:01:00]} 9. b4 {[%emt 0:05:11][%cal Bb2b4,Bb4b5][%mdl 32]} h6 {[%emt 0:01:40]} 10. b5 {[%emt 0:07:53]} Ne7 {[%emt 0:00:30]} 11. Ba3 {[%emt 0:04:46]} Be6 {[%emt 0:01:01]} 12. Nd2 {[%emt 0:01:08]} Rb8 {[%emt 0:06:18]} 13. e3 {[%emt 0:04:47]} Qd7 {[%emt 0:05:18] The position is equal.} 14. c5 {[%emt 0:06:03]} b6 {[%emt 0:10:37]} 15. cxd6 {[%emt 0:10:34]} cxd6 {[%emt 0:00:32]} 16. Nc4 {[%emt 0:01:02]} Ne8 {[%emt 0:00:21]} 17. Qa4 {[%emt 0:16:22]} Rc8 $1 {[%emt 0:08:35] Prevents Bc6.} 18. Ne2 {[%emt 0:02:18]} Rf7 {[%emt 0:19:13]} 19. Rbc1 {[%emt 0:00:43]} Kh7 {[%emt 0:11:36]} 20. Nd2 {[%emt 0:02:26]} d5 {[%emt 0:10:16]} ({Better is} 20... g5 $11) 21. Nf3 {[%emt 0:11:00]} Rxc1 {[%emt 0:00:57]} 22. Rxc1 {[%emt 0:00:17]} (22. Nxc1 g5 $15) 22... g5 {[%emt 0:00:06]} 23. Bb2 {[%emt 0:01:53]} (23. Bxe7 $1 $14 Rxe7 24. d4) 23... Ng6 $11 {[%emt 0:00:58]} 24. d4 {[%emt 0:01:27]} e4 {[%emt 0:00:05]} 25. Ne5 {[%emt 0:00:16]} Bxe5 {[%emt 0:00:04]} 26. dxe5 {[%emt 0:00:05]} f4 {[%emt 0:00:07]} 27. Nd4 {[%emt 0:00:31]} (27. exf4 $11 {remains equal.} gxf4 28. Rc6) 27... Bh3 $17 {[%emt 0:02:25]} ({Weaker is} 27... Nxe5 28. Nxe6 Qxe6 29. Bxe4+ dxe4 30. Qxe4+ Qf5 (30... Rf5 $2 31. g4 $18) 31. Qxe5 Qxe5 32. Bxe5 fxe3 33. fxe3 $16) 28. e6 {[%emt 0:01:54]} Bxe6 {[%emt 0:00:04]} 29. Nxe6 {[%emt 0:00:16]} Qxe6 {[%emt 0:00:01]} 30. Qd4 {[%emt 0:00:51]} Nc7 {[%emt 0:00:21][%cal Be8c7,Bc7e6,Be6c5,Bc5d3][%mdl 32]} 31. a4 {[%emt 0:06:32]} Qf5 {[%emt 0:00:41]} 32. h3 {[%emt 0:03:10]} (32. Rd1 $17) 32... Ne6 $19 {[%emt 0:01:18]} 33. Qd2 {[%emt 0:00:26] [#] g4 would now be deadly.} Nc5 $1 {[%emt 0:00:23]} 34. Rd1 {[%emt 0:01:55]} Nd3 {[%emt 0:00:14] A dynamic duo of knights.} ({Less strong is} 34... Nxa4 35. Bd4 $17) 35. Bd4 {[%emt 0:00:30]} h5 {[%emt 0:01:12] Strongly threatening ...Nge5.} 36. Qc3 $2 {[%emt 0:00:26]} (36. exf4 gxf4 37. Qc2) 36... fxg3 {[%emt 0:00:33]} 37. fxg3 {[%emt 0:00:36]} Qf2+ {[%emt 0:00:01] Black mates.} 38. Kh2 {[%emt 0:00:20]} h4 {[%emt 0:00:16]} 39. Rf1 {[%emt 0:01:26]} Qxg3+ {[%emt 0:00:07] Weighted Error Value: White=0.56/Black=0.12 (very precise) .  Mistake:       	White=4     	Black=1      Inaccurate:     	White=3     	Black=1      OK:         	White=8     	Black=11     Best:        	White=1     	Black=2      Strong:       	---       	Black=1} 0-1